{"text_format":"1","workbook":"xlsx","n_sheets":3,"sheets":["Ataskaitų sritis","Įrangos sąrašas","„Pivot“ duomenys"],"not_rendered":{"charts":0,"images":0,"macros":1,"external_links":0,"defined_names":13,"comments":0,"pivot_tables":1},"unopened":[],"bounds":{"document_bytes":16777216,"sheet_cells":100000,"rows_first":2000,"rows_last":500,"rows_between":2000,"halvings":0,"cell_chars":16384,"cell_head_chars":4096},"cells_cut":0,"cells_raw":0,"read":"whole","date_system":"1900"}

{"sheet":"Ataskaitų sritis","index":0,"n_rows":20,"n_cols":6,"rows_kept":20,"cut":false,"hidden":false,"merged":[]}
[null,"Ataskaitų sritis"]
[]
[]
[null,null,null,null,null,"Bendras skaičius"]
[null,null,null,null,null,{"$f":"GETPIVOTDATA(\"Skaičiavimas\",'„Pivot“ duomenys'!$B$11)","v":3}]
[]
[null,null,null,null,null,"Bendros išlaidos per mėnesį "]
[null,null,null,null,null,{"$f":"GETPIVOTDATA(\"Bendros išlaidos per mėnesį \",'„Pivot“ duomenys'!$B$11)","v":1765.5943035068672}]
[]
[null,null,null,null,null,"Valdymo išlaidos"]
[null,null,null,null,null,{"$f":"GETPIVOTDATA(\"Valdymo išlaidos\",'„Pivot“ duomenys'!$B$11)","v":605}]
[]
[null,null,null,null,null,"Mėnesinis nusidėvėjimas"]
[null,null,null,null,null,{"$f":"GETPIVOTDATA(\"Mėnesinis nusidėvėjimas\",'„Pivot“ duomenys'!$B$11)","v":659.72222222222217}]
[]
[null,null,null,null,null,"Mokėjimo suma"]
[null,null,null,null,null,{"$f":"GETPIVOTDATA(\"Mokėjimo suma\",'„Pivot“ duomenys'!$B$11)","v":1160.5943035068672}]
[]
[null,null,null,null,null,"Dabartinė vertė"]
[null,null,null,null,null,{"$f":"GETPIVOTDATA(\"Dabartinė vertė \",'„Pivot“ duomenys'!$B$11)","v":36773.51598173516}]

{"sheet":"Įrangos sąrašas","index":1,"n_rows":9,"n_cols":20,"rows_kept":9,"cut":false,"hidden":false,"merged":[]}
[null,"Įrangos sąrašas"]
[]
[null,null,null,"Paryškinti, kai mėnesinių mokėjimų lieka mažiau nei: ",20]
[]
[null,"Turto arba serijos numeris","Prekės aprašas\n(tipas ir modelis)","Vieta","Sąlyga","Tiekėjas","Likę naudojimo metai ","Pradinė vertė","Mokėjimas grynaisiais","Pirkimo arba nuomos data","Paskolos terminas (metais)","Palūkanų norma","Valdymo išlaidos per mėnesį","Tikėtina vertė sutarties pabaigoje","Liko mėnesinių mokėjimų","Mėnesinis mokėjimas","Bendros išlaidos per mėnesį","Metinis nusidėvėjimas (tiesinis metodas)","Mėnesinis nusidėvėjimas (tiesinis metodas)","Dabartinė vertė"]
[null,123,"1 gaminio modelis","Pagrindinis skyrius","Geras","Vietinis",5,30000,5000,"2011-01-15",4,0.1,200,20000,{"$f":"IFERROR(SUMPRODUCT(--(DAY(ROW(OFFSET($A$1,,,DATE(YEAR(Įranga[[#This Row],[Pirkimo arba nuomos data]])+Įranga[[#This Row],[Paskolos terminas (metais)]],MONTH(Įranga[[#This Row],[Pirkimo arba nuomos data]])-1,DAY(Įranga[[#This Row],[Pirkimo arba nuomos data]]))-TODAY()))+DATE(YEAR(Įranga[[#This Row],[Pirkimo arba nuomos data]])+Įranga[[#This Row],[Paskolos terminas (metais)]],MONTH(Įranga[[#This Row],[Pirkimo arba nuomos data]]),DAY(Įranga[[#This Row],[Pirkimo arba nuomos data]]))-1)=DAY(Įranga[[#This Row],[Pirkimo arba nuomos data]]))),0)","v":24},{"$f":"IFERROR(-(Įranga[Pradinė vertė]>0)*(Įranga[Pradinė vertė]<>Įranga[Mokėjimas grynaisiais])*PMT(Įranga[Palūkanų norma]/MėnesiaiPerMetus,Įranga[Paskolos terminas (metais)]*MėnesiaiPerMetus,Įranga[Pradinė vertė]-Įranga[Mokėjimas grynaisiais]),0)","v":634.06458586867973},{"$f":"Įranga[[#This Row],[Mėnesinis mokėjimas]]+Įranga[Valdymo išlaidos per mėnesį]","v":834.06458586867973},{"$f":"IFERROR((Įranga[Pradinė vertė]>0)*SLN(Įranga[Pradinė vertė],Įranga[Tikėtina vertė sutarties pabaigoje],Įranga[Paskolos terminas (metais)]),0)","v":2500},{"$f":"IFERROR(Įranga[Metinis nusidėvėjimas (tiesinis metodas)]/MėnesiaiPerMetus,0)","v":208.33333333333334},{"$f":"IFERROR(Įranga[Pradinė vertė]-(Įranga[Metinis nusidėvėjimas (tiesinis metodas)]*((TODAY()-Įranga[Pirkimo arba nuomos data])/DienosPerMetus)),0)","v":25123.287671232876}]
[null,234,"2 gaminio modelis","Pagrindinis skyrius","Geras","Vietinis",4,12500,1500,"2011-03-10",3,7.7499999999999999E-2,120,3000,{"$f":"IFERROR(SUMPRODUCT(--(DAY(ROW(OFFSET($A$1,,,DATE(YEAR(Įranga[[#This Row],[Pirkimo arba nuomos data]])+Įranga[[#This Row],[Paskolos terminas (metais)]],MONTH(Įranga[[#This Row],[Pirkimo arba nuomos data]])-1,DAY(Įranga[[#This Row],[Pirkimo arba nuomos data]]))-TODAY()))+DATE(YEAR(Įranga[[#This Row],[Pirkimo arba nuomos data]])+Įranga[[#This Row],[Paskolos terminas (metais)]],MONTH(Įranga[[#This Row],[Pirkimo arba nuomos data]]),DAY(Įranga[[#This Row],[Pirkimo arba nuomos data]]))-1)=DAY(Įranga[[#This Row],[Pirkimo arba nuomos data]]))),0)","v":14},{"$f":"IFERROR(-(Įranga[Pradinė vertė]>0)*(Įranga[Pradinė vertė]<>Įranga[Mokėjimas grynaisiais])*PMT(Įranga[Palūkanų norma]/MėnesiaiPerMetus,Įranga[Paskolos terminas (metais)]*MėnesiaiPerMetus,Įranga[Pradinė vertė]-Įranga[Mokėjimas grynaisiais]),0)","v":343.43280007691891},{"$f":"Įranga[[#This Row],[Mėnesinis mokėjimas]]+Įranga[Valdymo išlaidos per mėnesį]","v":463.43280007691891},{"$f":"IFERROR((Įranga[Pradinė vertė]>0)*SLN(Įranga[Pradinė vertė],Įranga[Tikėtina vertė sutarties pabaigoje],Įranga[Paskolos terminas (metais)]),0)","v":3166.6666666666665},{"$f":"IFERROR(Įranga[Metinis nusidėvėjimas (tiesinis metodas)]/MėnesiaiPerMetus,0)","v":263.88888888888886},{"$f":"IFERROR(Įranga[Pradinė vertė]-(Įranga[Metinis nusidėvėjimas (tiesinis metodas)]*((TODAY()-Įranga[Pirkimo arba nuomos data])/DienosPerMetus)),0)","v":6791.3242009132427}]
[null,345,"2 gaminio modelis","1 filialas","Patenkinamas","Kita",1,10000,2500,"2010-09-15",4,0.08,285,1000,{"$f":"IFERROR(SUMPRODUCT(--(DAY(ROW(OFFSET($A$1,,,DATE(YEAR(Įranga[[#This Row],[Pirkimo arba nuomos data]])+Įranga[[#This Row],[Paskolos terminas (metais)]],MONTH(Įranga[[#This Row],[Pirkimo arba nuomos data]])-1,DAY(Įranga[[#This Row],[Pirkimo arba nuomos data]]))-TODAY()))+DATE(YEAR(Įranga[[#This Row],[Pirkimo arba nuomos data]])+Įranga[[#This Row],[Paskolos terminas (metais)]],MONTH(Įranga[[#This Row],[Pirkimo arba nuomos data]]),DAY(Įranga[[#This Row],[Pirkimo arba nuomos data]]))-1)=DAY(Įranga[[#This Row],[Pirkimo arba nuomos data]]))),0)","v":20},{"$f":"IFERROR(-(Įranga[Pradinė vertė]>0)*(Įranga[Pradinė vertė]<>Įranga[Mokėjimas grynaisiais])*PMT(Įranga[Palūkanų norma]/MėnesiaiPerMetus,Įranga[Paskolos terminas (metais)]*MėnesiaiPerMetus,Įranga[Pradinė vertė]-Įranga[Mokėjimas grynaisiais]),0)","v":183.09691756126861},{"$f":"Įranga[[#This Row],[Mėnesinis mokėjimas]]+Įranga[Valdymo išlaidos per mėnesį]","v":468.09691756126858},{"$f":"IFERROR((Įranga[Pradinė vertė]>0)*SLN(Įranga[Pradinė vertė],Įranga[Tikėtina vertė sutarties pabaigoje],Įranga[Paskolos terminas (metais)]),0)","v":2250},{"$f":"IFERROR(Įranga[Metinis nusidėvėjimas (tiesinis metodas)]/MėnesiaiPerMetus,0)","v":187.5},{"$f":"IFERROR(Įranga[Pradinė vertė]-(Įranga[Metinis nusidėvėjimas (tiesinis metodas)]*((TODAY()-Įranga[Pirkimo arba nuomos data])/DienosPerMetus)),0)","v":4858.9041095890407}]
[null,"Suma",null,null,null,null,{"$f":"SUBTOTAL(101,Įranga[[Likę naudojimo metai ]])","v":3.3333333333333335},{"$f":"SUBTOTAL(109,Įranga[Pradinė vertė])","v":52500},{"$f":"SUBTOTAL(109,Įranga[Mokėjimas grynaisiais])","v":9000},null,{"$f":"SUBTOTAL(101,Įranga[Paskolos terminas (metais)])","v":3.6666666666666665},{"$f":"SUBTOTAL(101,Įranga[Palūkanų norma])","v":8.5833333333333331E-2},{"$f":"SUBTOTAL(109,Įranga[Valdymo išlaidos per mėnesį])","v":605},{"$f":"SUBTOTAL(109,Įranga[Tikėtina vertė sutarties pabaigoje])","v":24000},{"$f":"SUBTOTAL(101,Įranga[Liko mėnesinių mokėjimų])","v":19.333333333333332},{"$f":"SUBTOTAL(109,Įranga[Mėnesinis mokėjimas])","v":1160.5943035068672},{"$f":"SUBTOTAL(109,Įranga[Bendros išlaidos per mėnesį])","v":1765.5943035068672},{"$f":"SUBTOTAL(101,Įranga[Metinis nusidėvėjimas (tiesinis metodas)])","v":2638.8888888888887},{"$f":"SUBTOTAL(101,Įranga[Mėnesinis nusidėvėjimas (tiesinis metodas)])","v":219.90740740740739},{"$f":"SUBTOTAL(109,Įranga[Dabartinė vertė])","v":36773.51598173516}]

{"sheet":"„Pivot“ duomenys","index":2,"n_rows":15,"n_cols":8,"rows_kept":15,"cut":false,"hidden":true,"merged":[]}
[null,"„Pivot“ duomenys"]
[null,"Šis lapas turi likti paslėptas. Pakeitus šio lapo „PivotTable“ struktūrą, gali kilti problemų dėl ataskaitų srities šliaužiklių."]
[]
[null,"Prekės aprašas\n(tipas ir modelis)","(Visi)"]
[null,"Vieta","(Visi)"]
[null,"Sąlyga","(Visi)"]
[null,"Tiekėjas","(Visi)"]
[null,"Likę naudojimo metai ","(Visi)"]
[null,"Paskolos terminas (metais)","(Visi)"]
[]
[null,"Eilučių žymos","Skaičiavimas","Valdymo išlaidos","Mokėjimo suma","Bendros išlaidos per mėnesį ","Mėnesinis nusidėvėjimas","Dabartinė vertė "]
[null,123,1,200,634.06458586867973,834.06458586867973,208.33333333333334,25123.287671232876]
[null,234,1,120,343.43280007691891,463.43280007691891,263.88888888888886,6791.3242009132427]
[null,345,1,285,183.09691756126861,468.09691756126858,187.5,4858.9041095890407]
[null,"Bendroji suma",3,605,1160.5943035068672,1765.5943035068672,659.72222222222217,36773.51598173516]